Cogmind - Beta 9.4 @@@ ROGUE MODE // 2020.01.27 @ 23:23:16 Player: Nalzok Result: Destroyed by Y-45 Defender with Beam Rifle Performance ------------- Evolutions (2) 1000 Regions Visited (3) 600 Robots Destroyed (19) 95 Value Destroyed (403) 403 Prototype IDs (3) 60 Alien Tech Used (0) 0 Bonus (0) 0 TOTAL SCORE: 2158 Bonus ------- None Cogmind --------- Core Integrity 0/550 Matter 179/300 Energy 66/100 System Corruption 0% Temperature Cool (9) Movement Core (100) Ox1 Location -8/Materials Parts ------- > --- POWER (2) -------- (None) > --- PROPULSION (4) --- (None) > --- UTILITY (3) ------ (None) > --- WEAPON (2) ------- Rocket Launcher > --- INVENTORY (4) ---- Improved Sensor Array Peak State ------------ > --- POWER ------------ Light Ion Engine > --- PROPULSION ------- Flight Unit Flight Unit Flight Unit > --- UTILITY ---------- Medium Storage Unit > --- WEAPON ----------- Heavy EM Pulse Gun Heavy EM Pulse Gun > --- INVENTORY -------- Improved Sensor Array Improved Sensor Array EM Pulse Gun Light Assault Rifle Light Assault Rifle Rocket Launcher Rocket Launcher Rocket Launcher [Rating: 10] Favorites ----------- Power Light Ion Engine Engine Light Ion Engine Propulsion Flight Unit Leg Aluminum Leg Flight Unit Flight Unit Utility Medium Storage Unit Storage Medium Storage Unit Weapon Light Assault Rifle Energy Gun Heavy EM Pulse Gun Ballistic Gun Light Assault Rifle Launcher Rocket Launcher Build | -11 -10 -9 -8 ------- Run | Scr Mat Mat Mat Slots Evolved 4 | . . 2 2 Power 1 | . . . 1 Propulsion 2 | . . 2 . Utility 1 | . . . 1 Weapon . | . . . . Parts Attached 23 | . 12 3 8 Power 1 | . 1 . . Engine 1 | . 1 . . Core . | . . . . Reactor . | . . . . Propulsion 6 | . 5 1 . Treads . | . . . . Leg . | . . . . Wheel . | . . . . Hover . | . . . . Flight 6 | . 5 1 . Utility 1 | . 1 . . Device . | . . . . Storage 1 | . 1 . . Processor . | . . . . Hackware . | . . . . Protection . | . . . . Artifact . | . . . . Weapon 15 | . 5 2 8 Energy Gun 7 | . . 2 5 Energy Cannon . | . . . . Ballistic Gun 5 | . 5 . . Ballistic Cannon . | . . . . Launcher 3 | . . . 3 Special Weapon . | . . . . Impact Weapon . | . . . . Slashing Weapon . | . . . . Piercing Weapon . | . . . . Special Melee Weapon . | . . . . Unidentified Prototypes 1 | . . . 1 Parts Lost 19 | . 5 3 11 Power 2 | . 1 1 . Propulsion 6 | . 3 . 3 Utility 1 | . . . 1 Weapon 10 | . 1 2 7 Highest Loss Streak 13 | . 5 2 13 Average Slot Usage (%) 82 | . 97 74 22 Engine 11 | . 13 11 . Leg 6 | . 9 . . Flight 17 | . 16 33 9 Storage 22 | . 28 11 6 Energy Gun 3 | . . 16 6 Ballistic Gun 20 | . 28 2 . Naked Turns 10 | . . . 10 Heaviest Build 19 | 9 19 17 11 Greatest Support 20 | 20 20 12 12 Greatest Overweight (x) 5 | . 5 1 3 Average Overweight (x) 1 | . 1 . . Largest Inventory Capacity 10 | 6 10 10 8 Average Capacity 9 | 6 9 8 6 Most Carried 10 | 5 10 9 8 Average Carried 6 | 4 5 8 5 Final Capacity 10 | 6 10 8 4 Final Carried 10 | 2 10 8 1 Class Distribution -------------------- 100% | Mutant Dominant Class ---------------- Mutant | -10/Materials Mutant | -9/Materials Mutant | -8/Materials Resources | -11 -10 -9 -8 ----------- Run | Scr Mat Mat Mat Matter Collected 501 | 200 119 60 122 Remotely . | . . . . Salvage Created 448 | . 225 60 163 Parts 42 | . 24 3 15 Haulers Intercepted . | . . . . Recyclers Shooed 1 | . 1 . . Parts Field Recycled . | . . . . Retrieved Matter . | . . . . Parts Self-Destructed . | . . . . Prevented . | . . . . Kills | -11 -10 -9 -8 ------- Run | Scr Mat Mat Mat Combat Hostiles Destroyed 17 | . 10 1 6 Guns 12 | . 10 1 1 AOE 5 | . . . 5 Classes Destroyed 6 | . 2 1 3 Worker 1 | . . . 1 Recycler 1 | . . . 1 Swarmer 10 | . 6 . 4 Grunt 5 | . 4 . 1 Brawler 1 | . . 1 . Duelist 1 | . . . 1 Best Kill Streak 6 | . 4 1 6 Combat Bots Only 5 | . 4 1 5 Max Kills in Single Turn 4 | . 1 1 4 Gunslinging . | . . . . Exploded 3 | . . . 3 Melee . | . . . . Uniques/NPCs Destroyed . | . . . . Combat | -11 -10 -9 -8 -------- Run | Scr Mat Mat Mat Damage Taken 2165 | . 612 278 1275 Core 823 | . 149 112 562 Absorbed by Shields . | . . . . Core Remaining (%) 70 | 100 40 72 . Volleys Fired 81 | . 44 12 25 Largest 2 | . 2 2 1 Hottest 90 | . 40 90 63 Shots Fired 132 | . 87 20 25 Gun 124 | . 87 20 17 Cannon . | . . . . Launcher 8 | . . . 8 Special . | . . . . Kinetic 87 | . 87 . . Thermal 10 | . . . 10 Explosive 8 | . . . 8 Electromagnetic 27 | . . 20 7 Robot Hit Streak 9 | . 6 7 9 Robot Miss Streak 5 | . 5 4 2 Penetration Max . | . . . . Secondary Targets 4 | . 4 . . Max Gunslinging Chain 1 | . 1 . . Shots Hit Robots 67 | . 37 14 16 Core Hits 33 | . 17 2 14 Critical Hits . | . . . . Critical Kills . | . . . . Critical Parts Destroyed . | . . . . Melee Attacks . | . . . . Impact . | . . . . Slashing . | . . . . Piercing . | . . . . Sneak Attacks . | . . . . Combat Hostiles . | . . . . Follow-up Attacks . | . . . . Damage Inflicted 1249 | . 404 220 625 Guns 837 | . 404 220 213 Cannons . | . . . . Explosions 412 | . . . 412 Melee . | . . . . Ramming . | . . . . Kinetic 404 | . 404 . . Thermal 204 | . . . 204 Explosive 363 | . . . 363 Electromagnetic 278 | . . 220 58 Impact . | . . . . Slashing . | . . . . Piercing . | . . . . Highest Corruption . | . . . . Average Corruption . | . . . . Corruption Purged . | . . . . Overload Shots . | . . . . Overflow Damage 88 | . . . 88 Projectiles . | . . . . Explosions 88 | . . . 88 Melee . | . . . . Knockbacks . | . . . . Impact . | . . . . Kinetic . | . . . . Secondary . | . . . . Self-Inflicted Damage 158 | . . . 158 Shots 6 | . . . 6 Rammed . | . . . . Targets Rammed . | . . . . Kicked . | . . . . Crushed . | . . . . Highest Temperature 180 | . 6 180 22 Average Temperature 51 | . 1 99 8 Received Heat Transfer 648 | . 138 120 390 Siege Activations . | . . . . Robots Corrupted . | . . . . Combat Hostiles . | . . . . Parts Fried . | . . . . Impact Corruptions . | . . . . Robots Melted . | . . . . Combat Hostiles . | . . . . Parts Melted . | . . . . Heat Transferred 346 | . . . 346 Parts Sabotaged . | . . . . Parts Stolen . | . . . . Parts Stripped . | . . . . Power Chain Reactions 1 | . . . 1 Missiles Intercepted . | . . . . Alert | -11 -10 -9 -8 ------- Run | Scr Mat Mat Mat Peak Influence 180 | . 180 105 180 Average Influence 57 | . 62 59 34 Maximum Alert Level . | . . . . Low Security (%) 100 | 100 100 100 100 Level 1 . | . . . . Level 2 . | . . . . Level 3 . | . . . . Level 4 . | . . . . Level 5 . | . . . . High Security . | . . . . Max Security . | . . . . Squads Dispatched 5 | . 2 3 . Investigation 1 | . 1 . . Extermination . | . . . . Reinforcement 4 | . 1 3 . Assault . | . . . . Garrison . | . . . . Intercept . | . . . . Construction Impeded . | . . . . Haulers Reinforced . | . . . . Stealth | -11 -10 -9 -8 --------- Run | Scr Mat Mat Mat Distress Signals 1 | . 1 . . Communications Jammed . | . . . . Distress Signals . | . . . . Times Spotted 51 | . 20 19 12 Peak Tracking Total 13 | . 6 13 6 Tactical Retreats 4 | . . 3 1 Traps | -11 -10 -9 -8 ------- Run | Scr Mat Mat Mat Traps Triggered 1 | . 1 . . Indirectly . | . . . . Trap Hack Attempts . | . . . . Triggered . | . . . . Disarmed . | . . . . Reprogrammed . | . . . . Reused . | . . . . Traps Extracted . | . . . . Installed . | . . . . Triggered . | . . . . Machines | -11 -10 -9 -8 ---------- Run | Scr Mat Mat Mat Machines Disabled 3 | . 1 . 2 Max in Single Turn 1 | . 1 . 1 Machines Sabotaged . | . . . . Garrisons Compromised . | . . . . Overloaded Fab Kills . | . . . . Fab Network Shutdowns . | . . . . Hacking | -11 -10 -9 -8 --------- Run | Scr Mat Mat Mat Machines Accessed 6 | . 5 1 . Terminals 6 | . 5 1 . Fabricators . | . . . . Repair Stations . | . . . . Recycling Units . | . . . . Scanalyzers . | . . . . Garrison Access . | . . . . Total Hacks 10 | . 9 1 . Successful 6 | . 5 1 . Failed 4 | . 4 . . Catastrophic 1 | . 1 . . Database Lockouts . | . . . . Manual . | . . . . Terminals 10 | . 9 1 . Fabricators . | . . . . Repair Stations . | . . . . Recycling Units . | . . . . Scanalyzers . | . . . . Garrison Access . | . . . . Terminal Hacks 6 | . 5 1 . Robot Analysis 1 | . 1 . . Prototype ID Bank 1 | . 1 . . Level Access Points 1 | . 1 . . Branch Access Points 1 | . 1 . . Patrol Status 1 | . . 1 . Zone Layout 1 | . 1 . . Fabricator Hacks . | . . . . Repair Station Hacks . | . . . . Recycling Unit Hacks . | . . . . Scanalyzer . | . . . . Garrison Access Hacks . | . . . . Unauthorized Hacks . | . . . . Terminals . | . . . . Fabricators . | . . . . Repair Stations . | . . . . Recycling Units . | . . . . Scanalyzers . | . . . . Garrison Access . | . . . . Data Cores Recovered . | . . . . Used . | . . . . Hacking Detections 4 | . 4 . . Full Trace Events 1 | . 1 . . Feedback Events . | . . . . Feedback Blocked . | . . . . Robot Schematics Acquired . | . . . . Robots Built . | . . . . Matter . | . . . . Time . | . . . . Total Robot Build Rating . | . . . . Part Schematics Acquired . | . . . . Parts Built . | . . . . Matter . | . . . . Time . | . . . . Total Part Build Rating . | . . . . Parts Repaired . | . . . . Time . | . . . . Parts Recycled . | . . . . Recycled Matter . | . . . . Retrieved Matter . | . . . . Retrieved Components . | . . . . Parts Scanalyzed . | . . . . Part Schematics Acquired . | . . . . Parts Damaged . | . . . . Bothacking | -11 -10 -9 -8 ------------ Run | Scr Mat Mat Mat Used RIF Installer . | . . . . Robots Hacked . | . . . . Non-combat . | . . . . Combat . | . . . . Robot Hacks Applied . | . . . . Relay Couplers Released . | . . . . Robots Rewired . | . . . . Allies Hacked . | . . . . Hacks Repelled . | . . . . Allies | -11 -10 -9 -8 -------- Run | Scr Mat Mat Mat Total Allies . | . . . . Largest Group . | . . . . Highest-Rated Group . | . . . . Highest-Rated Ally . | . . . . Total Orders . | . . . . Ally Attacks . | . . . . Total Damage . | . . . . Kills . | . . . . Allies Corrupted . | . . . . Allies Melted . | . . . . Intel | -11 -10 -9 -8 ------- Run | Scr Mat Mat Mat Robot Analysis Total 1 | . 1 . . Derelict Logs Recovered . | . . . . Drone Launches . | . . . . Drone Recoveries . | . . . . Exploration | -11 -10 -9 -8 ------------- Run | Scr Mat Mat Mat Turns Passed 839 | 2 589 134 114 Spaces Moved 399 | 1 269 84 45 Core 27 | . 10 . 17 Treads . | . . . . Legs 138 | 1 137 . . Wheels . | . . . . Hover . | . . . . Flight 234 | . 122 84 28 Fastest Speed 34 | 120 120 34 34 Average Speed 139 | 120 162 98 82 Slowest Speed 360 | 120 360 114 200 Overloaded Moves . | . . . . Propulsion Burnouts . | . . . . Robots Hopped . | . . . . Cave-ins Triggered 1 | . . . 1 Exploration Rate (%) 20 | 2 54 16 9 Regions Visited 3 Branch Regions . Pre-discovered Areas . | . . . . Known Exits Taken 1 | . 1 . . Unknown Exits Taken 2 | 1 . 1 . Scrap Searched . | . . . . Spaces Dug . | . . . . Terrain Destroyed 59 | . . . 59 Melee . | . . . . Projectile . | . . . . AOE 59 | . . . 59 Actions | -11 -10 -9 -8 --------- Run | Scr Mat Mat Mat Total 558 | 4 343 115 96 Wait 28 | . . 10 18 Move 396 | . 268 83 45 Hop . | . . . . Pick Up 16 | . 14 2 . Fast Attach 8 | . 3 2 3 Attach 11 | . 5 1 5 Detach . | . . . . Swap 4 | . 4 . . Drop 14 | 4 5 5 . Fire 81 | . 44 12 25 Melee . | . . . . Ram . | . . . . Kick . | . . . . Crush . | . . . . Escape Stasis . | . . . . Rewire . | . . . . Trap . | . . . . Miscellaneous . | . . . . Route ------- -11/Scrapyard -10/Materials (discovered 4 exits: *Mat x3 / Min) -9/Materials -8/Materials History --------- Turn | Location | Event 3 | -11/Scrapyard | Discovered new exit (range 0) 3 | -11/Scrapyard | Entered Materials 47 | -10/Materials | Identified exit to Mines 248 | -10/Materials | Identified exit to Materials 302 | -10/Materials | Build established: Mutant 424 | -10/Materials | Core integrity fell below 50% 477 | -10/Materials | Lost 5 parts (1p3n1w) 592 | -10/Materials | Entered another Materials area 592 | -9/Materials | Evolved 2 slots: Propulsion x2 722 | -9/Materials | Discovered new exit (range 13) 726 | -9/Materials | Entered another Materials area 726 | -8/Materials | Evolved 2 slots: Power x1, Utility x1 805 | -8/Materials | Core integrity fell below 50% 831 | -8/Materials | Crushed by falling debris 831 | -8/Materials | Core integrity fell below 20% 840 | -8/Materials | Destroyed by Y-45 Defender with Beam Rifle Last Messages --------------- 00820_ R-06 Scavenger collects Imp. Sensor Array. 00823_ C-30 ARC bursts open, deploying its payload. 00823_ S-10 Pest unfolds itself. 00823_ R-06 Scavenger destroyed. 00823_ Recycling Unit disabled. 00823_ Rocket Launcher destroyed. 00823_ Destroyed Rocket Launcher. 00823_ S-10 Pest destroyed. 00828_ Acquired 79 matter. 00829_ G-47 Trooper destroyed. 00829_ Rocket Launcher destroyed. 00829_ Destroyed Rocket Launcher. 00831_ The unstable cave ceiling collapses. 00831_ Crushed by falling debris. 00832_ Destroyed Flight Unit. 00832_ Destroyed Lgt. Ion Engine. 00835_ S-10 Pest destroyed. 00837_ The unstable cave ceiling collapses. 00837_ Atomic Centrifuge disabled. 00839_ The unstable cave ceiling collapses. Map ----- +----------------------------------------------------+ | ?????????????????????????????????????????????????? | | ?????????????????????????????????????????????????? | | ?????????????????????????????????????????????????? | | ?????????????????????????????????????????????????? | | ?????????????????????????????????????????????????? | | ?????????????????????????????????????????????????? | | ???????????????????????????????? ??????????????? | | ???????????????????????????????# ??????????????? | | ???????????????????????????????# ??????????????? | | ???????????????????????????????# #?????????????? | | ???????????????????????????????+ +?????????????? | | ???????????????????????????????# #?????????????? | | ???????????????????????????????# #?????????????? | | ???????????????" ???????####?### #?????????????? | | ???????????????? #??????? ?? #?????????????? | | ?????????????????+??????? ?? #?????????????? | | ?????????????????# ??????? m??? #?????????????? | | ?????????????????#g ????## ##### +?????????????? | | ?????????????????#gg #### ;;;; ###########???? | | ?????????????????# # ; ## #???? | | ????????????###### ; ## #???? | | ????????????? [ ; ## """ #???? | | ????????????? = ; ## """ #???? | | ??????????????? # ; ## """ #???? | | ????????????????###+## ## """ #???? | | ??????????????# " @ ## #???? | | ??????????????# =%" ! ## #???? | | ??????????????# * % * # #???? | | ??????????????# " [[ +####+##### | | ??????????????# " = # | | ??????????????# " ## ### | | ??????????????# Y #??##?# | | ??????????????# ??????# # ########### | | ??????????????## ??????###### ???????????? | | ???????????????## # ??????????????#???????????? | | ????????????????###??##??????????????????????????? | | | | | | | | | | | | | | | | | | | | | | | | | | | | | +----------------------------------------------------+ Best States ------------- Heat Dissipation 31 Energy Generation 10 Energy Capacity 125 Matter Stores 300 Matter Capacity 300 Sight Range 16 Terrain Scan Density 10 Evasion (%) 63 Item Schematics ----------------- None Robot Schematics ------------------ None Fabricated ------------ Nothing Alien Tech Used ----------------- None Achievements -------------- None Challenges ------------ None Game ------ Seed FissionAntimissileSheargun Manual? 0 Play Time 00:10:09 Cumulative 209.4 hours Start 2020.01.27 @ 23:11:52 End 2020.01.27 @ 23:23:16 Sessions 1 Manual Loads 0 Difficulty Rogue Special Mode None Game No. 337 Rogue 336 Adventurer 0 Explorer 1 Win Type - Total 1 Types 1/0/0/0/0/0/0 Lore% 60 Gallery% 76 Achievement% 48 Wizard Run 0 Options --------- ASCII 1 Keyboard 0 Movement Vi Keybinds 0 Fullscreen 1 Font 14/Cog Map View 72x52 Tactical HUD 1 Map Filters NONE Filters LOW_CONTRAST(13,24,33) Steam 0 RUN: 28656389-1d04-451b-9d8a-a3a1b16be25f